bitfinex/quotes_SOLUSD_20250402
["timestamp","ask_amount","ask_price","bid_price","bid_amount"]
[1743629919871,130.05634582,125.86,125.8,37.9491]
[1743629920082,130.05634582,125.86,125.8,7.9491]
[1743629920487,90.47,125.86,125.8,7.9491]
[1743629921298,120.21634582,125.85,125.79,4.4145]
[1743629921480,39.58634582,125.84,125.78,26.0]
[1743629921674,80.63,125.87,125.81,0.28432314]
[1743629922005,120.21634582,125.87,125.81,0.28432314]
[1743629922595,39.58634582,125.86,125.8,26.0]
[1743629922772,39.58634582,125.86,125.72,0.5]
[1743629922773,80.63,125.85,125.71,50.1129]
[1743629922968,80.63,125.84,125.77,0.42648471]
[1743629923210,9.82,125.83,125.78,7.9503]
[1743629924999,80.63,125.87,125.79,0.42648471]
[1743629925207,88.5748,125.87,125.79,0.42648471]
[1743629925405,80.63,125.87,125.79,0.42648471]
[1743629925709,80.63,125.87,125.81,26.0]
[1743629925869,0.43701396,125.9,125.82,26.42648471]
[1743629926396,0.43701396,125.9,125.84,0.42648471]
[1743629926801,0.43701396,125.9,125.86,0.28432314]
[1743629927018,40.02335978,125.9,125.85,7.9459]
[1743629928798,40.02335978,125.9,125.84,8.23082314]
[1743629929297,47.96645978,125.9,125.84,7.9465]
[1743629929676,40.02335978,125.9,125.84,7.9465]
[1743629930303,80.63,125.89,125.84,7.9465]
[1743629930688,80.13,125.89,125.84,7.9465]
[1743629930990,80.13,125.89,125.76,0.5]
[1743629930991,39.58634582,125.85,125.75,7.9522]
[1743629931203,39.58634582,125.8,125.76,30.0]
[1743629931416,89.95,125.79,125.76,30.0]
[1743629931695,9.82,125.78,125.76,30.0]
[1743629932182,9.82,125.78,125.74,12.404]
[1743629932382,80.13,125.79,125.74,12.404]
[1743629932881,9.8,125.78,125.74,12.404]
[1743629933086,9.82,125.77,125.74,12.404]
[1743629933280,127.66604582,125.79,125.74,7.9526]
[1743629933484,9.82,125.77,125.73,7.9531]
[1743629933790,9.82,125.77,125.72,7.9538]
[1743629934514,9.32,125.77,125.72,7.9538]
[1743629934906,9.32,125.77,125.71,8.23912314]
[1743629935807,9.32,125.77,125.72,0.063]
[1743629937511,17.2711,125.77,125.72,0.063]
[1743629937886,119.71634582,125.76,125.72,0.063]
[1743629938087,39.58634582,125.75,125.72,0.063]
[1743629938585,119.71634582,125.74,125.72,0.063]
[1743629938903,158.41634582,125.73,125.72,0.063]
[1743629939104,39.58634582,125.73,125.72,0.063]
[1743629939407,47.53984582,125.73,125.72,0.063]
[1743629939791,57.33984582,125.73,125.72,0.063]
[1743629940512,49.38634582,125.73,125.72,0.063]
[1743629940707,57.33984582,125.73,125.72,0.063]
[1743629941206,7.9512,125.77,125.72,0.063]
[1743629941403,39.58634582,125.77,125.72,0.063]
[1743629943005,48.50404582,125.78,125.72,0.063]
[1743629943209,82.1,125.75,125.72,0.063]
[1743629944300,82.1,125.75,125.73,0.28432314]
[1743629944496,82.1,125.79,125.75,0.28432314]
[1743629945827,82.1,125.83,125.75,0.42648471]
[1743629946125,82.1,125.83,125.78,0.42648471]
[1743629946492,82.1,125.83,125.79,27.824]
[1743629947219,82.1,125.83,125.8,0.28432314]
[1743629947721,39.58634582,125.87,125.8,0.42648471]
[1743629948423,394.52634582,125.88,125.8,0.42648471]
[1743629948712,394.52634582,125.88,125.82,0.42648471]
[1743629948713,82.1,125.88,125.82,0.42648471]
[1743629949416,0.43701396,125.9,125.86,26.0]
[1743629949631,0.43701396,125.9,125.87,0.42648471]
[1743629949913,0.43701396,125.9,125.87,0.28432314]
[1743629950104,40.02335978,125.9,125.84,26.0]
[1743629950309,82.1,125.89,125.82,0.14216157]
[1743629950613,82.1,125.88,125.83,27.8152]
[1743629951194,82.1,125.88,125.83,7.9472]
[1743629952911,82.1,125.88,125.82,7.9478]
[1743629953915,129.63044582,125.88,125.82,7.9478]
[1743629954092,39.58634582,125.87,125.82,7.9478]
[1743629954294,39.58634582,125.87,125.81,26.0]
[1743629954604,82.1,125.86,125.8,7.9491]
[1743629954802,82.1,125.85,125.8,7.9491]
[1743629956007,81.6,125.85,125.8,7.9491]
[1743629956515,89.5461,125.85,125.8,7.9491]
[1743629957493,120.0,125.84,125.79,12.2401]
[1743629957997,120.0,125.84,125.79,7.9495]
[1743629958428,127.9469,125.84,125.76,27.8304]
[1743629958619,81.6,125.83,125.76,27.8304]
[1743629959700,81.6,125.83,125.76,34.16304813]
[1743629960003,81.6,125.83,125.77,0.42648471]
[1743629960919,81.6,125.83,125.78,7.9503]
[1743629961426,81.6,125.83,125.78,27.8262]
[1743629962527,81.6,125.89,125.82,0.28432314]
[1743629962823,81.6,125.88,125.82,0.28432314]
[1743629963423,81.6,125.88,125.83,7.9472]
[1743629964619,89.5442,125.88,125.83,7.9472]
[1743629964822,81.6,125.88,125.83,7.9472]
[1743629966632,81.6,125.88,125.81,27.819]
[1743629966833,81.6,125.88,125.81,53.819]
[1743629967705,81.6,125.88,125.82,0.28432314]
[1743629968908,81.6,125.88,125.83,7.9472]
[1743629969305,121.18634582,125.88,125.83,7.9472]
[1743629970430,81.6,125.88,125.83,7.9472]
[1743629972313,81.6,125.88,125.83,12.2297]
[1743629973629,81.6,125.88,125.83,7.9472]
[1743629974631,81.6,125.88,125.83,27.8152]
[1743629976117,121.18634582,125.88,125.83,27.8152]
[1743629977032,81.6,125.88,125.83,27.8152]
[1743629978337,81.6,125.88,125.85,27.8108]
[1743629980036,0.43701396,125.9,125.85,27.8108]
[1743629980326,106.14951542,125.92,125.85,19.8649]
[1743629980537,24.61250146,125.9,125.85,19.8649]
[1743629982428,24.61250146,125.89,125.84,7.9465]
[1743629983121,24.61250146,125.87,125.84,7.9465]
[1743629983433,90.4109,125.87,125.8,7.9491]
[1743629983618,24.61250146,125.85,125.81,30.0]
[1743629983821,24.61250146,125.83,125.81,30.0]
[1743629984007,106.21250146,125.82,125.81,30.0]
[1743629984212,106.21250146,125.82,125.77,8.014]
[1743629984433,81.6,125.81,125.77,8.014]
[1743629985134,106.21250146,125.81,125.77,0.063]
[1743629985630,24.61250146,125.8,125.77,0.063]
[1743629986408,81.6,125.79,125.77,0.063]
[1743629987419,81.6,125.78,125.77,0.063]
[1743629988627,38.4,125.8,125.77,0.063]
[1743629991728,38.4,125.8,125.77,8.014]
[1743629992037,81.6,125.81,125.77,27.8915]
[1743629993539,120.0,125.84,125.78,0.28432314]
[1743629993845,81.6,125.84,125.79,7.9497]
[1743629994017,81.6,125.84,125.79,27.824]
[1743629997241,81.6,125.84,125.79,7.9497]
[1743629997655,89.5466,125.84,125.79,7.9497]
[1743629997852,81.6,125.83,125.79,7.9497]
[1743629998028,128.9931456,125.83,125.77,27.891]
[1743629998231,121.0456456,125.82,125.77,8.014]
[1743629999042,89.5457,125.86,125.78,0.28432314]
[1743629999238,128.9913456,125.86,125.78,0.28432314]
[1743629999755,89.5457,125.86,125.78,0.28432314]
[1743630000051,129.0213456,125.86,125.78,0.28432314]
[1743630000250,81.63,125.86,125.8,0.28432314]
[1743630000752,121.0756456,125.86,125.79,36.4306]
[1743630000952,159.4456456,125.85,125.79,7.9497]
[1743630001129,39.4456456,125.84,125.79,7.9497]
[1743630001328,168.3416456,125.83,125.78,7.9501]
[1743630002055,81.6,125.82,125.78,27.826]
[1743630002241,81.6,125.82,125.78,19.8759]
[1743630003045,121.0456456,125.82,125.77,8.014]
[1743630003237,128.9935456,125.82,125.77,8.014]
[1743630003551,39.4456456,125.8,125.77,0.063]
[1743630003851,39.4456456,125.78,125.77,0.063]
[1743630004148,56.5033456,125.78,125.77,0.063]
[1743630004449,56.64550717,125.78,125.77,0.063]
[1743630004752,26.0,125.75,125.73,12.29539894]
[1743630005054,49.30780717,125.74,125.73,12.29539894]
[1743630005630,49.59213031,125.74,125.73,12.29539894]
[1743630005828,0.14216157,125.73,125.72,0.063]
[1743630006029,0.14216157,125.73,125.7,0.063]
[1743630006030,50.08216157,125.71,125.7,0.063]
[1743630006263,0.14216157,125.68,125.67,12.35839894]
[1743630006460,9.86216157,125.68,125.67,12.35839894]
[1743630006662,49.30780717,125.68,125.67,12.35839894]
[1743630006831,49.59213031,125.68,125.67,12.35839894]
[1743630007231,49.59213031,125.68,125.66,24.65379788]
[1743630007232,0.28432314,125.67,125.66,24.65379788]
[1743630007475,0.28432314,125.67,125.65,49.18159576]
[1743630007476,24.08216157,125.66,125.65,49.18159576]
[1743630007766,24.08216157,125.66,125.64,0.063]
[1743630007767,0.28432314,125.65,125.64,0.063]
[1743630007978,105.17561434,125.65,125.64,0.063]
[1743630008146,141.11949642,125.65,125.64,0.063]
[1743630009129,0.14216157,125.64,125.59,0.063]
[1743630009437,39.87213031,125.61,125.59,0.063]
[1743630009850,39.58780717,125.61,125.59,0.063]
[1743630010245,47.83323031,125.61,125.59,0.063]
[1743630010565,26.0,125.58,125.48,122.95398941]
[1743630010729,39.4456456,125.54,125.45,0.14216157]
[1743630010933,39.4456456,125.54,125.49,7.9686]
[1743630011133,39.58780717,125.54,125.48,7.9688]
[1743630011946,39.58780717,125.54,125.46,19.9258]
[1743630012250,39.4456456,125.54,125.46,19.9258]
[1743630012452,9.72,125.55,125.47,0.28432314]
[1743630012658,9.72,125.55,125.47,0.42648471]
[1743630013235,38.4,125.56,125.47,0.42648471]
[1743630013434,48.12,125.56,125.47,0.42648471]
[1743630014071,48.12,125.56,125.49,26.0]
[1743630014472,48.12,125.56,125.5,27.8884]
[1743630016843,77.98780717,125.55,125.5,7.9681]
[1743630017077,77.8456456,125.55,125.5,7.9681]
[1743630018367,77.8456456,125.55,125.46,0.28432314]
[1743630018567,39.4456456,125.54,125.45,67.756]
[1743630019067,39.4456456,125.54,125.46,0.28432314]
[1743630020973,39.4456456,125.54,125.47,7.97]
[1743630022951,39.4456456,125.54,125.47,27.895]
[1743630023681,46.3651,125.55,125.47,27.895]
[1743630024065,77.8456456,125.54,125.47,27.895]
[1743630025280,47.55330717,125.54,125.45,27.8995]
[1743630025478,71.49330717,125.54,125.45,27.8995]
[1743630026867,81.21330717,125.54,125.45,27.8995]
[1743630027173,81.49763031,125.54,125.45,7.9713]
[1743630028258,24.08216157,125.5,125.44,4.2297]
[1743630028478,39.4456456,125.46,125.44,4.2297]
[1743630029372,82.1,125.45,125.44,4.2297]
[1743630029554,82.1,125.45,125.41,7.9736]
[1743630029759,91.82,125.44,125.41,7.9736]
[1743630030059,82.1,125.43,125.41,7.9736]
[1743630030269,82.1,125.43,125.41,27.9082]
[1743630032377,82.1,125.43,125.41,7.9736]
[1743630032877,9.72,125.44,125.41,27.9082]
[1743630033577,160.08780717,125.43,125.4,0.063]
[1743630033774,159.9456456,125.43,125.4,0.063]
[1743630034080,39.4456456,125.42,125.4,0.063]
[1743630034271,82.1,125.41,125.4,0.063]
[1743630034870,82.1,125.41,125.4,8.0374]
[1743630035669,82.1,125.41,125.4,0.063]
[1743630043270,40.7108,125.41,125.4,0.063]
[1743630043479,39.4456456,125.46,125.4,0.063]
[1743630043789,82.1,125.45,125.4,0.063]
[1743630045601,106.88370244,125.45,125.4,0.063]
[1743630047001,82.1,125.45,125.4,0.063]
[1743630047307,106.88370244,125.45,125.4,0.063]
[1743630048002,82.1,125.45,125.4,0.063]
[1743630048176,106.88370244,125.45,125.4,0.063]
[1743630051210,106.88370244,125.45,125.4,26.063]
[1743630051505,82.1,125.45,125.4,26.063]
[1743630051700,106.88370244,125.45,125.4,26.063]
[1743630052305,82.1,125.45,125.4,26.063]
[1743630052993,82.1,125.45,125.41,7.9738]
[1743630053414,82.1,125.45,125.41,27.9084]
[1743630056815,9.7,125.46,125.42,11.2712]
[1743630057223,106.88370244,125.48,125.42,11.2712]
[1743630057523,106.88370244,125.48,125.43,27.9039]
[1743630058309,82.1,125.48,125.43,27.9039]
[1743630058496,106.88370244,125.48,125.43,27.9039]
[1743630059613,82.1,125.48,125.43,27.9039]
[1743630059924,82.1,125.47,125.43,27.9039]
[1743630064193,82.1,125.46,125.42,7.9729]
[1743630064398,24.78370244,125.45,125.42,7.9729]
[1743630064627,106.88370244,125.44,125.41,7.9738]
[1743630065325,82.1,125.44,125.41,7.9738]
[1743630066005,82.1,125.44,125.4,0.063]
[1743630068997,24.84670244,125.48,125.42,26.0]
[1743630068998,9.743,125.48,125.42,26.0]
[1743630069195,9.743,125.48,125.43,7.2585]
[1743630070026,0.063,125.48,125.43,7.2585]
[1743630070221,0.063,125.48,125.44,27.9017]
[1743630071010,0.063,125.48,125.45,3.8918]
[1743630072922,0.063,125.48,125.46,7.9706]
[1743630076008,0.0001,125.48,125.46,7.9706]
[1743630080134,82.1,125.52,125.5,26.0]
[1743630081417,82.1,125.52,125.51,7.9674]
[1743630082445,0.063,125.53,125.51,7.9674]
[1743630089727,0.063,125.53,125.52,3.57318471]
[1743630090858,0.063,125.53,125.52,37.53998471]
[1743630093349,0.063,125.53,125.52,43.91258471]
[1743630100758,0.063,125.53,125.52,37.53998471]
[1743630104257,0.063,125.53,125.52,37.1135]
[1743630105859,0.063,125.53,125.52,33.9668]
[1743630119870,0.063,125.53,125.52,7.9668]
[1743630120055,0.063,125.53,125.51,7.9671]
[1743630120768,0.063,125.53,125.5,19.9194]
[1743630123774,0.063,125.53,125.49,7.9687]
[1743630124976,15.89182696,125.53,125.49,7.9687]
[1743630125165,15.82882696,125.51,125.48,0.063]
[1743630125667,97.92882696,125.52,125.48,0.063]
[1743630126171,15.82882696,125.51,125.48,0.063]
[1743630127268,82.1,125.52,125.49,26.0]
[1743630128458,82.1,125.52,125.5,7.9681]
[1743630132583,0.063,125.53,125.5,27.8884]
[1743630141387,0.063,125.53,125.51,3.1155]
[1743630141890,0.063,125.53,125.52,7.9668]
[1743630155899,82.1,125.64,125.6,26.0]
[1743630156113,0.063,125.66,125.6,26.0]
[1743630156311,0.063,125.66,125.62,3.0393]
[1743630157308,0.063,125.66,125.65,7.9586]
[1743630159289,0.063,125.66,125.64,7.9592]
[1743630163905,0.063,125.66,125.65,26.0]
[1743630166915,0.063,125.66,125.65,33.9586]
[1743630175004,0.063,125.66,125.63,7.9598]
[1743630177234,0.063,125.66,125.65,0.063]
[1743630189635,0.063,125.66,125.65,26.063]
[1743630190022,0.063,125.66,125.65,26.48948471]
[1743630190935,0.063,125.66,125.65,34.44808471]
[1743630191320,0.03,125.72,125.65,54.34458471]
[1743630191823,0.03,125.72,125.66,0.42648471]
[1743630192917,0.03,125.72,125.67,2.9317]
[1743630193233,0.03,125.72,125.68,27.8484]
[1743630194138,0.03,125.72,125.71,26.0]
[1743630194336,0.03,125.72,125.71,26.42648471]
[1743630194537,0.0001,125.72,125.71,26.42648471]
[1743630194920,0.0001,125.72,125.71,29.39968471]
[1743630195624,0.0001,125.72,125.71,37.35448471]
[1743630198537,0.0001,125.72,125.71,67.35448471]
[1743630200437,0.03,125.79,125.71,67.35448471]
[1743630200438,0.03,125.79,125.71,127.07848471]
[1743630201522,0.03,125.79,125.73,27.8373]
[1743630203749,0.03,125.79,125.73,19.8838]
[1743630215159,0.03,125.79,125.76,26.0]
[1743630215370,0.03,125.79,125.76,7.9514]
[1743630216562,0.03,125.79,125.75,26.0]
[1743630218163,0.03,125.79,125.76,7.9516]
[1743630219161,0.03,125.79,125.75,7.9522]
[1743630221861,15.85882696,125.79,125.75,7.9522]
[1743630222062,15.85882696,125.79,125.71,0.063]
[1743630222063,21.58161167,125.77,125.71,0.063]
[1743630222246,21.58161167,125.77,125.71,30.063]
[1743630222247,82.1,125.76,125.71,30.063]
[1743630222848,82.1,125.76,125.71,38.0172]
[1743630224075,90.0522,125.76,125.71,38.0172]
[1743630224573,90.0522,125.76,125.71,8.0172]
[1743630225160,90.0522,125.76,125.71,0.063]
[1743630225371,0.42648471,125.75,125.71,0.063]
[1743630226378,82.1,125.74,125.71,0.063]
[1743630226570,82.1,125.73,125.71,0.063]
[1743630227158,91.54,125.73,125.71,0.063]
[1743630227373,82.1,125.72,125.71,0.063]
[1743630227570,82.1,125.76,125.71,0.063]
[1743630227753,82.1,125.75,125.71,0.063]
[1743630230980,82.1,125.78,125.71,6.5421]
[1743630232990,82.1,125.78,125.72,27.8395]
[1743630233171,82.1,125.77,125.72,27.8395]
[1743630233989,82.1,125.76,125.72,27.8395]
[1743630235077,82.1,125.76,125.74,7.9529]
[1743630237871,0.03,125.79,125.74,27.8351]
[1743630238194,0.03,125.79,125.77,26.0]
[1743630238496,82.1,125.84,125.78,2.7866]
[1743630238707,82.1,125.84,125.81,26.0]
[1743630239278,82.1,125.84,125.78,9.0389]
[1743630239705,82.1,125.84,125.79,27.824]
[1743630240781,82.1,125.84,125.8,0.42648471]
[1743630241176,0.03,125.85,125.82,26.0]
[1743630241405,0.03,125.85,125.83,2.772]
[1743630241587,0.03,125.85,125.84,7.9465]
[1743630241994,0.03,125.86,125.84,7.9465]
[1743630243809,0.03,125.86,125.83,17.0362]
[1743630244114,0.03,125.86,125.83,10.7189]
[1743630248810,0.03,125.86,125.83,10.7819]
[1743630249826,0.03,125.86,125.83,30.6499]
[1743630250111,0.03,125.86,125.84,6.2747]
[1743630250312,0.03,125.86,125.85,7.9459]
[1743630260015,0.03,125.89,125.85,67.5406]
[1743630260216,0.03,125.89,125.86,2.8336]
[1743630261227,0.0001,125.89,125.86,2.8336]
[1743630262005,0.0001,125.89,125.87,7.9447]
[1743630269204,0.0001,125.89,125.85,0.063]
[1743630272817,82.1,125.88,125.85,0.063]
[1743630275812,90.0441,125.88,125.85,0.063]
[1743630276009,82.1,125.87,125.85,0.063]
[1743630277931,82.1,125.86,125.85,0.063]
[1743630278134,7.9452,125.87,125.85,0.063]
[1743630279934,115.66061167,125.86,125.85,0.063]
[1743630280134,139.56061167,125.86,125.85,0.063]
[1743630281132,0.14216157,125.81,125.74,27.8351]
[1743630281440,91.334,125.8,125.75,30.0]
[1743630281735,91.334,125.8,125.74,27.8351]
[1743630284433,91.334,125.8,125.74,27.8981]
[1743630285136,81.974,125.79,125.74,27.8981]
[1743630286138,81.974,125.78,125.74,27.8981]
[1743630290738,40.9967,125.78,125.74,67.6626]
[1743630290943,9.36,125.82,125.74,67.6626]
[1743630291142,0.28432314,125.84,125.75,8.7314]
[1743630291643,0.28432314,125.84,125.76,27.8307]
[1743630291826,82.1,125.82,125.76,67.5889]
[1743630296146,82.1,125.82,125.76,27.8307]
[1743630296926,82.1,125.83,125.76,67.5889]
[1743630300744,82.1,125.88,125.78,67.5781]
[1743630300962,82.1,125.88,125.79,8.6509]
[1743630301828,82.1,125.88,125.8,2.5961]
[1743630302848,82.1,125.88,125.81,27.8196]
[1743630304449,82.1,125.88,125.81,67.562]
[1743630304635,82.1,125.88,125.81,27.8196]
[1743630304835,105.87322696,125.88,125.81,27.8196]
[1743630305054,98.35531167,125.87,125.81,7.9484]
[1743630305253,15.82882696,125.86,125.81,7.9484]
[1743630305438,82.1,125.85,125.81,7.9484]
[1743630305632,82.1,125.84,125.81,7.9484]
[1743630305833,82.1,125.83,125.8,10.545]
[1743630306041,82.1,125.82,125.78,7.95]
[1743630306246,82.1,125.81,125.78,7.95]
[1743630306845,82.1,125.8,125.77,10.5728]
[1743630307032,82.1,125.8,125.77,7.9509]
[1743630308147,82.1,125.8,125.78,0.063]
[1743630315560,0.14216157,125.81,125.78,0.063]
[1743630315561,82.1,125.79,125.78,0.063]
[1743630320287,25.14882696,125.8,125.78,0.063]
[1743630320485,9.32,125.8,125.78,0.063]
[1743630320671,0.42648471,125.79,125.78,0.063]
[1743630322997,24.20501167,125.79,125.78,0.063]
[1743630323355,24.20501167,125.79,125.74,0.063]
[1743630323356,26.0,125.76,125.74,0.063]
[1743630323562,26.0,125.76,125.72,0.063]
[1743630323563,50.32648471,125.73,125.72,0.063]
[1743630323889,87.33955056,125.73,125.72,0.063]
[1743630324065,111.4347854,125.73,125.72,0.063]
[1743630324255,27.4291177,125.73,125.72,0.063]
[1743630324465,0.42648471,125.73,125.72,0.063]
[1743630325279,15.82882696,125.74,125.72,0.063]
[1743630327397,15.82882696,125.73,125.72,0.063]
[1743630327885,24.67815757,125.73,125.72,0.063]
[1743630329365,25.10464228,125.73,125.72,0.063]
[1743630331797,33.05814228,125.73,125.72,0.063]
[1743630333995,56.95814228,125.73,125.72,0.063]
[1743630337272,90.41758471,125.72,125.7,0.063]
[1743630337594,115.09574228,125.72,125.7,0.063]
[1743630337772,138.99574228,125.72,125.7,0.063]
[1743630338392,115.09574228,125.72,125.7,0.063]
[1743630338896,139.77389985,125.72,125.7,0.063]
[1743630339088,49.78279985,125.71,125.7,0.063]
[1743630339396,57.73759985,125.71,125.7,0.063]
[1743630340777,67.03759985,125.71,125.7,0.063]
[1743630341895,0.42648471,125.67,125.65,0.063]
[1743630342071,116.50464228,125.66,125.65,0.063]
[1743630343379,124.46254228,125.66,125.65,0.063]
[1743630343788,42.36254228,125.66,125.65,0.063]
[1743630344880,0.42648471,125.65,125.61,0.063]
[1743630345191,25.10464228,125.62,125.61,0.063]
[1743630345505,33.06514228,125.62,125.61,0.063]
[1743630347180,0.42648471,125.61,125.59,0.063]
[1743630347379,34.40464228,125.6,125.59,0.063]
[1743630348597,116.50464228,125.6,125.59,0.063]
[1743630349796,124.46634228,125.6,125.59,0.063]
[1743630350913,89.9371,125.58,125.53,7.966]
[1743630351088,0.42648471,125.56,125.53,7.966]
[1743630351285,9.3,125.55,125.53,7.966]
[1743630353581,33.97815757,125.55,125.53,7.966]
[1743630353784,9.3,125.55,125.53,7.966]
[1743630354307,81.974,125.54,125.53,7.966]
[1743630355004,81.974,125.54,125.52,10.6719]
[1743630355996,81.974,125.53,125.52,2.7053]
[1743630356611,81.974,125.53,125.52,10.6721]
[1743630357108,16.26611523,125.53,125.52,2.7053]
[1743630357698,25.18241077,125.53,125.52,2.7053]
[1743630358906,33.14861077,125.53,125.52,2.7053]
[1743630361007,33.14861077,125.53,125.52,0.063]
[1743630361907,57.04861077,125.53,125.52,0.063]
[1743630362305,57.90453683,125.53,125.52,0.063]
[1743630362529,57.04861077,125.53,125.52,0.063]
[1743630362721,81.80453683,125.53,125.52,0.063]
[1743630362921,0.42648471,125.5,125.48,0.063]
[1743630363236,116.51941077,125.49,125.48,0.063]
[1743630364641,34.48241077,125.49,125.48,0.063]
[1743630365028,42.45111077,125.49,125.48,0.063]
[1743630366240,66.35111077,125.49,125.48,0.063]
[1743630366541,0.42648471,125.48,125.42,2.6024]
[1743630366746,24.75592606,125.44,125.42,2.6024]
[1743630366931,9.3,125.43,125.42,2.6024]
[1743630367239,9.72648471,125.43,125.42,2.6024]
[1743630367431,34.48241077,125.43,125.42,2.6024]
[1743630368442,9.72648471,125.43,125.42,2.6024]
[1743630368626,34.48241077,125.43,125.42,2.6024]
[1743630370038,34.46241077,125.43,125.42,2.6024]
[1743630374045,42.43491077,125.43,125.42,2.6024]
[1743630375729,0.42648471,125.42,125.41,0.03]
[1743630376146,33.15561077,125.42,125.41,0.03]
[1743630377028,33.15561077,125.42,125.37,14.2416]
[1743630377029,50.32648471,125.39,125.34,7.9779]
[1743630377226,24.89808763,125.36,125.33,0.063]
[1743630377430,25.18241077,125.36,125.33,30.063]
[1743630377951,25.18241077,125.36,125.33,0.063]
[1743630378641,33.15941077,125.36,125.33,0.063]
[1743630380454,42.43941077,125.36,125.33,0.063]
[1743630381058,66.33941077,125.36,125.33,0.063]
[1743630381239,364.71533683,125.36,125.33,0.063]
[1743630381434,50.04216157,125.34,125.33,0.063]
[1743630381648,99.83833683,125.34,125.33,0.063]
[1743630382243,181.93833683,125.34,125.33,0.063]
[1743630383061,189.91653683,125.34,125.33,0.063]
[1743630384856,49.08241077,125.29,125.28,2.7052]
[1743630385059,58.36241077,125.29,125.28,2.7052]
[1743630385448,58.36241077,125.29,125.28,0.03]
[1743630385753,83.11833683,125.29,125.28,0.03]
[1743630386949,91.09973683,125.29,125.28,0.03]
[1743630389464,82.04,125.27,125.25,0.063]
[1743630389665,106.79592606,125.26,125.25,0.063]
[1743630389869,25.18241077,125.26,125.25,0.063]
[1743630390045,49.08241077,125.26,125.25,0.063]
[1743630391751,330.88571077,125.26,125.25,0.063]
[1743630392048,0.42648471,125.25,125.22,0.03]
[1743630392255,73.83833683,125.23,125.21,2.911642]
[1743630392563,0.42648471,125.21,125.2,0.063]
[1743630392765,49.08241077,125.21,125.2,0.063]
[1743630392977,11.46460845,125.23,125.2,0.063]
[1743630393264,24.75592606,125.24,125.2,14.3627]
[1743630393446,24.75592606,125.23,125.2,14.3627]
[1743630393764,24.75592606,125.23,125.21,0.03]
[1743630394667,24.75592606,125.25,125.22,2.7414]
[1743630395250,273.82,125.26,125.22,2.7414]
[1743630395447,24.89808763,125.23,125.22,2.7414]
[1743630395647,25.18241077,125.23,125.22,2.7414]
[1743630395864,24.75592606,125.23,125.22,10.7273]
[1743630396065,24.75592606,125.24,125.22,10.7273]
[1743630396263,24.75592606,125.25,125.22,10.7273]
[1743630396466,24.75592606,125.25,125.22,30.6921]
[1743630397251,298.57592606,125.26,125.22,30.6921]
[1743630397968,82.1,125.25,125.22,30.6921]
[1743630401752,107.28241077,125.24,125.22,2.7414]
[1743630401971,82.49648471,125.21,125.2,0.063]
[1743630402174,25.18241077,125.21,125.2,0.063]
[1743630404370,33.16891077,125.21,125.2,0.063]
[1743630404979,24.75592606,125.22,125.2,0.063]
[1743630405283,0.42648471,125.21,125.2,0.063]
[1743630405654,19.9603,125.25,125.2,0.063]
[1743630405655,17.2433,125.26,125.2,0.063]
[1743630405860,0.063,125.22,125.21,2.578]
[1743630406476,0.063,125.22,125.21,8.8487]
[1743630406851,0.063,125.22,125.21,16.8352]